fUSD/lending_fUSD_20251211
["ID","MTS","AMOUNT","RATE_DAILY","PERIOD"]
[398231659,1765441840348,-893.5125517,0.000217,2]
[398231660,1765441840358,-346.92554585,0.00021864,2]
[398231661,1765441840367,-320.74051982,0.00021864,2]
[398231662,1765441840377,-5000.0,0.00021918,2]
[398231663,1765441840387,-150.99,0.00022562,2]
[398231664,1765441840396,-359.76179104,0.00023233,2]
[398231665,1765441840406,-332.60791905,0.00023233,2]
[398231666,1765441840415,-500.0,0.00023367,2]
[398231667,1765441840424,-2155.2245165,0.00024223,2]
[398231668,1765441840434,-105313.225549,0.00024274,2]
[398231669,1765441840444,-167.0,0.000246,7]
[398231670,1765441840454,-167.0,0.000246,5]
[398231671,1765441840463,-373.07297731,0.00024602,2]
[398231672,1765441840473,-344.91441206,0.00024602,2]
[398231673,1765441840482,-999.0,0.00024743,3]
[398231674,1765441840492,-45667.6082271,0.000249,3]
[398231675,1765441840501,-168.27,0.00025179,2]
[398231676,1765441840511,-453.95038579,0.00025971,2]
[398231677,1765441840520,-357.6762453,0.00025971,2]
[398231678,1765441840529,-893.5125517,0.000265,2]
[398231679,1765441840538,-170.31,0.00027,10]
[398231680,1765441840547,-370.91026638,0.0002734,2]
[398231681,1765441840556,-10716.37,0.00027961,2]
[398231682,1765441840565,-3006.90863046,0.00028,3]
[398231683,1765441840577,-1000.0,0.00028629,2]
[398231684,1765441840586,-1000.0,0.0002863,2]
[398231685,1765441840595,-384.63394623,0.00028709,2]
[398231686,1765441840604,-500.0,0.00028904,2]
[398231687,1765441840614,-302.79472894,0.00029135,2]
[398231688,1765441840624,-3419.82582112,0.00029332,2]
[398231689,1765441840634,-437.15712298,0.00029332,2]
[398231690,1765441840643,-168.27,0.00029413,2]
[398231691,1765441840652,-222.92349579,0.00030078,2]
[398231692,1765441840661,-797.09,0.000303,30]
[398231693,1765441840671,-203.26,0.00031228,2]
[398231694,1765441840681,-893.5125517,0.000313,2]
[398231695,1765441840691,-500.0,0.0003137,2]
[398231696,1765441840700,-431.0,0.00031479,2]
[398231697,1765441840709,-1000.0,0.000321,2]
[398231698,1765441840718,-3449.0,0.00032295,2]
[398231699,1765441840728,-500.0,0.00032364,60]
[398231700,1765441840737,-1260.0,0.00032522,2]
[398231701,1765441840747,-684.0,0.00032522,2]
[398231702,1765441840757,-1606.0,0.00032522,2]
[398231703,1765441840766,-612.729,0.00032522,2]
[398231704,1765441840774,-1554.622893,0.00032877,31]
[398231705,1765441840783,-1554.622893,0.00032877,31]
[398231706,1765441840792,-1554.622893,0.00032877,31]
[398231707,1765441840801,-1554.622893,0.00032877,31]
[398231708,1765441840809,-151.0,0.00032877,31]
[398231709,1765441840819,-151.0,0.00032877,31]
[398231710,1765441840829,-151.0,0.00032877,31]
[398231711,1765441840837,-288.586272,0.00032877,31]
[398231712,1765441840846,-151.0,0.00032877,31]
[398231713,1765441840857,-151.0,0.00032877,31]
[398231714,1765441840866,-151.0,0.00032877,31]
[398231715,1765441840875,-151.0,0.00032877,31]
[398231716,1765441840884,-151.0,0.00032877,31]
[398231717,1765441840893,-151.0,0.00032877,31]
[398231718,1765441840903,-159.23218,0.00032877,31]
[398231719,1765441840911,-160.594706,0.00032877,31]
[398231720,1765441840921,-179.253806,0.00032877,31]
[398231721,1765441840930,-151.0,0.00032877,31]
[398231722,1765441840939,-1000.0,0.00035245,2]
[398231723,1765441840948,-827.54741822,0.00035248,2]
[398231724,1765441840957,-1000.0,0.00035286,2]
[398231725,1765441840967,-3449.0,0.00035295,2]
[398231726,1765441840977,-1260.0,0.00035522,2]
[398231727,1765441840986,-614.0,0.00035522,2]
[398231728,1765441840995,-1606.0,0.00035522,2]
[398231729,1765441841004,-611.0,0.00035522,2]
[398231730,1765441841013,-1000.0,0.000358,2]
[398231731,1765441841022,-893.5125517,0.000361,2]
[398231732,1765441841031,-1000.0,0.000362,7]
[398231733,1765441841040,-500.0,0.00036384,2]
[398231735,1765441841049,-797.09,0.000367,30]
[398231737,1765441841058,-150.0,0.00036888,7]
[398231738,1765441841068,-150.0,0.00036888,7]
[398231739,1765441841077,-150.0,0.00036888,7]
[398231740,1765441841086,-150.0,0.00036888,7]
[398231741,1765441841095,-150.0,0.00036888,7]
[398231742,1765441841104,-150.0,0.00036888,7]
[398231743,1765441841114,-150.0,0.00036888,7]
[398231744,1765441841124,-150.0,0.00036888,7]
[398231745,1765441841133,-150.0,0.00036888,7]
[398231746,1765441841142,-150.0,0.00036888,7]
[398231747,1765441841151,-340.2,0.00036986,2]
[398231748,1765441841160,-167.0,0.00037,120]
[398231749,1765441841170,-167.0,0.00037,30]
[398231750,1765441841179,-4796.07034412,0.00037205,2]
[398231751,1765441841189,-480.43,0.0003726,2]
[398231752,1765441841198,-1406.79,0.0003726,2]
[398231753,1765441841207,-480.43,0.0003726,2]
[398231754,1765441841217,-480.43,0.0003726,2]
[398231755,1765441841227,-150.0,0.0003726,7]
[398231756,1765441841236,-150.0,0.00037343,7]
[398231757,1765441841246,-150.0,0.00037343,7]
[398231758,1765441841256,-1380.98566234,0.00037392,2]
[398231759,1765441841265,-150.0,0.000374,7]
[398231760,1765441841275,-150.0,0.000374,7]
[398231761,1765441841284,-1380.98566234,0.00037541,2]
[398231762,1765441841295,-866.5,0.00037578,30]
[398231763,1765441841304,-150.0,0.00037633,7]
[398231764,1765441841313,-150.0,0.00037707,7]
[398231765,1765441841322,-150.0,0.00037798,7]
[398231766,1765441841333,-150.0,0.00037798,7]
[398231767,1765441841342,-150.0,0.00037808,2]
[398231768,1765441841353,-340.52,0.00037808,2]
[398231769,1765441841364,-170.32,0.00037808,2]
[398231770,1765441841374,-150.0,0.00037912,7]
[398231771,1765441841384,-150.0,0.00037912,7]
[398231772,1765441841393,-150.0,0.00037912,7]
[398231773,1765441841403,-1380.98566234,0.00038002,2]
[398231774,1765441841414,-150.0,0.00038005,7]
[398231775,1765441841423,-415.364404,0.0003809,2]
[398231776,1765441841435,-1380.98566234,0.00038092,2]
[398231777,1765441841448,-219.76448304,0.00038095,2]
[398231778,1765441841458,-152.0,0.00038126,3]
[398231779,1765441841467,-150.36185267,0.00038158,7]
[398231780,1765441841477,-254.54,0.0003818,2]
[398231781,1765441841486,-959.48,0.00038219,2]
[398231782,1765441841496,-480.31,0.00038219,2]
[398231783,1765441841505,-480.43,0.00038219,2]
[398231784,1765441841515,-480.43,0.00038219,2]
[398231785,1765441841524,-151.0,0.00038253,14]
[398231786,1765441841533,-150.0,0.00038254,7]
[398231787,1765441841544,-150.0,0.00038254,7]
[398231788,1765441841553,-10000.0,0.00038256,2]
[398231789,1765441841562,-500.0,0.00038256,2]
[398231790,1765441841571,-1536.2664,0.00038256,2]
[398231791,1765441841580,-255555.0,0.00038256,30]
[398231792,1765441841589,-6248.0,0.00038256,5]
[398231793,1765441841598,-350.71156203,0.00038256,2]
[398231794,1765441841607,-1554.622893,0.00038256,31]
[398231795,1765441841616,-1554.622893,0.00038256,31]
[398231796,1765441841625,-1554.622893,0.00038256,31]
[398231797,1765441841634,-1554.622893,0.00038256,31]
[398231798,1765441841643,-151.0,0.00038256,31]
[398231799,1765441841652,-151.0,0.00038256,31]
[398231800,1765441841662,-297.163312,0.00038256,31]
[398231801,1765441841671,-151.0,0.00038256,31]
[398231802,1765441841680,-242.6891,0.00038256,31]
[398231803,1765441841690,-151.0,0.00038256,31]
[398231804,1765441841699,-151.0,0.00038256,31]
[398231805,1765441841709,-151.0,0.00038256,31]
[398231806,1765441841718,-151.0,0.00038256,31]
[398231807,1765441841727,-151.0,0.00038256,31]
[398231808,1765441841738,-151.0,0.00038256,31]
[398231809,1765441841748,-151.0,0.00038256,31]
[398231810,1765441841759,-3443.0,0.00038295,2]
[398231811,1765441841769,-500.0,0.00038355,60]
[398231812,1765441841779,-500.0,0.00038355,60]
[398231813,1765441841790,-500.0,0.00038355,60]
[398231814,1765441841800,-500.0,0.00038355,60]
[398231815,1765441841811,-396.06,0.00038355,60]
[398231816,1765441841821,-152.06,0.00038356,2]
[398231817,1765441841831,-151.31,0.00038356,2]
[398231818,1765441841841,-200.0,0.00038356,5]
[398231819,1765441841851,-200.0,0.00038356,2]
[398231820,1765441841861,-200.0,0.00038356,2]
[398231821,1765441841873,-216.769874,0.00038356,2]
[398231822,1765441841882,-500.0,0.00038356,60]
[398231823,1765441841892,-500.0,0.00038356,60]
[398231824,1765441841901,-500.0,0.00038356,60]
[398231825,1765441841911,-505.55341028,0.00038356,60]
[398231826,1765441841921,-500.0,0.00038356,60]
[398231827,1765441841931,-513.07680432,0.00038356,60]
[398231828,1765441841941,-500.0,0.00038356,60]
[398231829,1765441841950,-500.0,0.00038356,60]
[398231830,1765441841960,-500.0,0.00038356,60]
[398231831,1765441841969,-500.0,0.00038356,60]
[398231832,1765441841983,-500.0,0.00038356,60]
[398231833,1765441841993,-151.0,0.00038356,31]
[398231834,1765441842003,-151.0,0.00038356,31]
[398231835,1765441842013,-500.0,0.00038356,60]
[398231836,1765441842023,-500.0,0.00038356,60]
[398231837,1765441842033,-500.0,0.00038356,60]
[398231838,1765441842043,-500.0,0.00038356,60]
[398231839,1765441842052,-151.0,0.00038356,31]
[398231840,1765441842064,-263.30351232,0.00038356,31]
[398231841,1765441842074,-500.0,0.00038356,60]
[398231842,1765441842084,-507.04300641,0.00038356,60]
[398231843,1765441842094,-8105.7911731,0.00038356,2]
[398231844,1765441842104,-500.0,0.00038356,60]
[398231845,1765441842114,-500.0,0.00038356,60]
[398231846,1765441842123,-500.0,0.00038356,60]
[398231847,1765441842135,-500.0,0.00038356,60]
[398231848,1765441842144,-500.0,0.00038356,60]
[398231849,1765441842154,-500.0,0.00038356,60]
[398231850,1765441842164,-500.0,0.00038356,60]
[398231851,1765441842174,-500.0,0.00038356,60]
[398231852,1765441842184,-500.0,0.00038356,60]
[398231853,1765441842195,-500.0,0.00038356,60]
[398231854,1765441842206,-500.0,0.00038356,60]
[398231855,1765441842217,-500.0,0.00038356,60]
[398231856,1765441842227,-500.0,0.00038356,60]
[398231857,1765441842237,-500.0,0.00038356,60]
[398231858,1765441842249,-500.0,0.00038356,60]
[398231859,1765441842258,-500.0,0.00038356,60]
[398231860,1765441842268,-500.0,0.00038356,60]
[398231861,1765441842278,-500.0,0.00038356,60]
[398231862,1765441842449,-500.0,0.00038356,60]
[398231863,1765441842460,-500.0,0.00038356,60]
[398231864,1765441842470,-500.0,0.00038356,60]
[398231865,1765441842479,-500.0,0.00038356,60]
[398231866,1765441842489,-500.0,0.00038356,60]
[398231867,1765441842499,-500.0,0.00038356,60]
[398231868,1765441842509,-500.0,0.00038356,60]
[398231869,1765441842519,-535.22273197,0.00038356,60]
[398231870,1765441842528,-500.0,0.00038356,60]
[398231871,1765441842538,-500.0,0.00038356,60]
[398231872,1765441842548,-500.0,0.00038356,60]
[398231873,1765441842557,-500.0,0.00038356,60]
[398231874,1765441842567,-500.0,0.00038356,60]
[398231875,1765441842576,-500.0,0.00038356,60]
[398231876,1765441842585,-509.96582194,0.00038356,60]
[398231877,1765441842594,-500.0,0.00038356,60]
[398231878,1765441842603,-500.0,0.00038356,60]
[398231879,1765441842612,-502.56795202,0.00038356,60]
[398231880,1765441842623,-500.0,0.00038356,60]
[398231881,1765441842632,-500.0,0.00038356,60]
[398231882,1765441842641,-500.0,0.00038356,60]
[398231883,1765441842651,-500.0,0.00038356,60]
[398231884,1765441842660,-500.0,0.00038356,60]
[398231885,1765441842669,-507.64906003,0.00038356,60]
[398231886,1765441842679,-500.0,0.00038356,60]
[398231887,1765441842691,-500.0,0.00038356,60]
[398231888,1765441842700,-500.0,0.00038356,60]
[398231889,1765441842709,-500.0,0.00038356,60]
[398231890,1765441842719,-500.0,0.00038356,60]
[398231891,1765441842728,-500.0,0.00038356,60]
[398231892,1765441842738,-200.0,0.00038356,2]
[398231893,1765441842749,-500.0,0.00038356,60]
[398231894,1765441842759,-500.0,0.00038356,60]
[398231895,1765441842768,-181.98,0.00038356,60]
[398231896,1765441842778,-500.0,0.00038356,60]
[398231897,1765441842789,-500.0,0.00038356,60]
[398231898,1765441842799,-500.0,0.00038356,60]
[398231899,1765441842808,-500.0,0.00038356,60]
[398231900,1765441842818,-500.0,0.00038356,60]
[398231902,1765441842827,-500.0,0.00038356,60]
[398231904,1765441842837,-500.0,0.00038356,60]
[398231906,1765441842846,-494.13388206,0.00038356,60]
[398231908,1765441842855,-500.0,0.00038356,60]
[398231910,1765441842865,-500.0,0.00038356,60]
[398231912,1765441842875,-500.0,0.00038356,60]
[398231915,1765441842884,-500.0,0.00038356,60]
[398231917,1765441842894,-500.0,0.00038356,60]
[398231919,1765441842905,-500.0,0.00038356,60]
[398231921,1765441842916,-500.0,0.00038356,60]
[398231923,1765441842925,-500.0,0.00038356,60]
[398231925,1765441842935,-500.0,0.00038356,60]
[398231926,1765441842945,-578.55319263,0.00038356,60]
[398231927,1765441842954,-500.0,0.00038356,60]
[398231928,1765441842963,-529.33685879,0.00038356,60]
[398231929,1765441842972,-500.0,0.00038356,60]
[398231930,1765441842982,-486.38165113,0.00038356,60]
[398231931,1765441842992,-500.0,0.00038356,60]
[398231933,1765441843003,-500.0,0.00038356,60]
[398231934,1765441843012,-500.0,0.00038356,60]
[398231936,1765441843021,-500.0,0.00038356,60]
[398231937,1765441843031,-500.0,0.00038356,60]
[398231939,1765441843040,-151.0,0.00038356,31]
[398231940,1765441843050,-500.0,0.00038356,60]
[398231942,1765441843059,-500.0,0.00038356,60]
[398231943,1765441843068,-500.0,0.00038356,60]
[398231945,1765441843078,-500.0,0.00038356,60]
[398231946,1765441843087,-500.0,0.00038356,60]
[398231947,1765441843096,-500.0,0.00038356,60]
[398231948,1765441843107,-500.0,0.00038356,60]
[398231949,1765441843116,-500.0,0.00038356,60]
[398231950,1765441843125,-500.0,0.00038356,60]
[398231951,1765441843135,-500.0,0.00038356,60]
[398231952,1765441843144,-500.0,0.00038356,60]
[398231953,1765441843153,-262.28876221,0.00038356,60]
[398231954,1765441843164,-500.0,0.00038356,60]
[398231955,1765441843173,-500.0,0.00038356,60]
[398231957,1765441843183,-500.0,0.00038356,60]
[398231959,1765441843191,-500.0,0.00038356,60]
[398231961,1765441843202,-500.0,0.00038356,60]
[398231962,1765441843211,-500.0,0.00038356,60]
[398231963,1765441843220,-500.0,0.00038356,60]
[398231964,1765441843230,-500.0,0.00038356,60]
[398231965,1765441843240,-9910.84,0.00038356,5]
[398231966,1765441843250,-9910.84,0.00038356,5]
[398231967,1765441843259,-9910.84,0.00038356,5]
[398231968,1765441843268,-9910.84,0.00038356,5]
[398231969,1765441843279,-9910.84,0.00038356,5]
[398231970,1765441843288,-9910.84,0.00038356,5]
[398231971,1765441843298,-9910.84,0.00038356,5]
[398231972,1765441843308,-9910.84,0.00038356,5]
[398231973,1765441843317,-9910.84,0.00038356,5]
[398231974,1765441843326,-9910.84,0.00038356,5]
[398231975,1765441843335,-9910.84,0.00038356,5]
[398231976,1765441843345,-9910.84,0.00038356,5]
[398231977,1765441843355,-9910.84,0.00038356,5]
[398231978,1765441843364,-151.0,0.00038356,31]
[398231979,1765441843374,-500.0,0.00038356,3]
[398231980,1765441843383,-500.0,0.00038356,3]
[398231981,1765441843392,-500.0,0.00038356,60]
[398231982,1765441843401,-500.0,0.00038356,60]
[398231983,1765441843410,-500.0,0.00038356,60]
[398231984,1765441843419,-500.0,0.00038356,60]
[398231985,1765441843428,-500.0,0.00038356,60]
[398231986,1765441843436,-500.0,0.00038356,60]
[398231987,1765441843447,-500.0,0.00038356,60]
[398231988,1765441843456,-500.0,0.00038356,60]
[398231989,1765441843465,-500.0,0.00038356,60]
[398231990,1765441843474,-500.0,0.00038356,60]
[398231991,1765441843483,-500.0,0.00038356,60]
[398231992,1765441843493,-500.0,0.00038356,60]
[398231993,1765441843502,-500.0,0.00038356,60]
[398231994,1765441843511,-500.0,0.00038356,60]
[398231995,1765441843520,-500.0,0.00038356,60]
[398231996,1765441843529,-500.0,0.00038356,60]
[398231997,1765441843538,-500.0,0.00038356,60]
[398231998,1765441843547,-500.0,0.00038356,60]
[398231999,1765441843557,-500.0,0.00038356,60]
[398232000,1765441843567,-500.0,0.00038356,60]
[398232001,1765441843576,-500.0,0.00038356,60]
[398232002,1765441843585,-500.0,0.00038356,60]
[398232003,1765441843594,-500.0,0.00038356,60]
[398232004,1765441843603,-500.0,0.00038356,60]
[398232005,1765441843612,-202.41367918,0.00038356,60]
[398232006,1765441843621,-636.20542803,0.00038356,60]
[398232007,1765441843631,-500.0,0.00038356,60]
[398232008,1765441843640,-500.0,0.00038356,60]
[398232009,1765441843649,-430.71688257,0.00038356,7]
[398232010,1765441843658,-500.0,0.00038356,60]
[398232011,1765441843667,-500.0,0.00038356,60]
[398232012,1765441843675,-500.0,0.00038356,60]
[398232013,1765441843684,-500.0,0.00038356,60]
[398232014,1765441843695,-500.0,0.00038356,60]
[398232015,1765441843704,-500.0,0.00038356,60]
[398232016,1765441843713,-500.0,0.00038356,60]
[398232017,1765441843723,-500.0,0.00038356,60]
[398232018,1765441843733,-500.0,0.00038356,60]
[398232019,1765441843742,-500.0,0.00038356,60]
[398232020,1765441843751,-500.0,0.00038356,60]
[398232021,1765441843760,-500.0,0.00038356,60]
[398232022,1765441843769,-500.0,0.00038356,60]
[398232023,1765441843779,-500.0,0.00038356,60]
[398232024,1765441843787,-500.0,0.00038356,60]
[398232025,1765441843796,-500.0,0.00038356,60]
[398232026,1765441843805,-500.0,0.00038356,60]
[398232027,1765441843814,-500.0,0.00038356,60]
[398232028,1765441843823,-500.0,0.00038356,60]
[398232029,1765441843833,-500.0,0.00038356,60]
[398232030,1765441843842,-500.0,0.00038356,60]
[398232031,1765441843851,-500.0,0.00038356,60]
[398232032,1765441843860,-500.0,0.00038356,60]
[398232033,1765441843869,-500.0,0.00038356,60]
[398232034,1765441843879,-503.64675575,0.00038356,60]
[398232035,1765441843888,-523.76597465,0.00038356,60]
[398232036,1765441843897,-500.0,0.00038356,60]
[398232037,1765441843906,-503.44488944,0.00038356,60]
[398232038,1765441843916,-500.0,0.00038356,60]
[398232040,1765441843925,-500.0,0.00038356,60]
[398232041,1765441843934,-500.0,0.00038356,60]
[398232043,1765441843943,-500.0,0.00038356,60]
[398232045,1765441843952,-500.0,0.00038356,60]
[398232047,1765441843962,-500.0,0.00038356,60]
[398232048,1765441843971,-500.0,0.00038356,60]
[398232049,1765441843984,-500.0,0.00038356,60]
[398232050,1765441843993,-500.0,0.00038356,60]
[398232051,1765441844002,-500.0,0.00038356,60]
[398232052,1765441844012,-500.0,0.00038356,60]
[398232053,1765441844021,-500.0,0.00038356,60]
[398232054,1765441844030,-500.0,0.00038356,60]
[398232055,1765441844039,-500.0,0.00038356,60]
[398232056,1765441844048,-298.37397821,0.00038356,60]
[398232057,1765441844058,-500.0,0.00038356,60]
[398232058,1765441844067,-500.0,0.00038356,60]
[398232059,1765441844076,-500.0,0.00038356,60]
[398232060,1765441844086,-500.0,0.00038356,60]
[398232061,1765441844095,-500.0,0.00038356,60]
[398232062,1765441844104,-500.0,0.00038356,60]
[398232063,1765441844114,-544.44089405,0.00038356,60]
[398232064,1765441844124,-500.0,0.00038356,60]
[398232065,1765441844134,-500.0,0.00038356,60]
[398232066,1765441844143,-500.0,0.00038356,60]
[398232067,1765441844152,-500.0,0.00038356,60]
[398232068,1765441844161,-500.0,0.00038356,60]
[398232069,1765441844171,-500.0,0.00038356,60]
[398232070,1765441844180,-501.64511858,0.00038356,60]
[398232071,1765441844189,-500.0,0.00038356,60]
[398232072,1765441844198,-500.0,0.00038356,60]
[398232073,1765441844208,-500.0,0.00038356,60]
[398232074,1765441844217,-500.0,0.00038356,60]
[398232075,1765441844226,-500.0,0.00038356,60]
[398232076,1765441844236,-500.0,0.00038356,60]
[398232077,1765441844245,-500.0,0.00038356,60]
[398232078,1765441844255,-500.0,0.00038356,60]
[398232079,1765441844265,-500.0,0.00038356,60]
[398232080,1765441844274,-500.0,0.00038356,60]
[398232081,1765441844284,-500.0,0.00038356,60]
[398232082,1765441844295,-500.0,0.00038356,60]
[398232083,1765441844305,-275.42127052,0.00038356,60]
[398232084,1765441844314,-500.0,0.00038356,60]
[398232085,1765441844324,-505.26442086,0.00038356,60]
[398232086,1765441844333,-500.0,0.00038356,60]
[398232087,1765441844342,-500.0,0.00038356,60]
[398232088,1765441844351,-519.75533213,0.00038356,60]
[398232089,1765441844360,-568.03228761,0.00038356,60]
[398232090,1765441844369,-500.0,0.00038356,60]
[398232091,1765441844378,-500.0,0.00038356,60]
[398232092,1765441844387,-500.0,0.00038356,60]
[398232093,1765441844396,-500.0,0.00038356,60]
[398232094,1765441844405,-500.0,0.00038356,60]
[398232095,1765441844414,-301.69134657,0.00038356,60]
[398232096,1765441844423,-500.0,0.00038356,60]
[398232097,1765441844433,-500.0,0.00038356,60]
[398232098,1765441844442,-500.0,0.00038356,60]
[398232099,1765441844452,-500.0,0.00038356,60]
[398232100,1765441844461,-500.0,0.00038356,60]
[398232101,1765441844470,-500.0,0.00038356,60]
[398232102,1765441844479,-500.0,0.00038356,60]
[398232103,1765441844489,-500.0,0.00038356,60]
[398232104,1765441844498,-500.0,0.00038356,60]
[398232105,1765441844507,-500.0,0.00038356,60]
[398232106,1765441844516,-500.0,0.00038356,60]
[398232107,1765441844526,-255.56579853,0.00038356,60]
[398232108,1765441844535,-503.74485319,0.00038356,60]
[398232109,1765441844544,-501.38920096,0.00038356,60]
[398232110,1765441844553,-542.40606083,0.00038356,60]
[398232111,1765441844563,-500.0,0.00038356,60]
[398232112,1765441844572,-500.0,0.00038356,60]
[398232113,1765441844581,-500.0,0.00038356,60]
[398232114,1765441844590,-500.0,0.00038356,60]
[398232115,1765441844599,-500.0,0.00038356,60]
[398232116,1765441844609,-529.14588832,0.00038356,60]
[398232117,1765441844618,-500.0,0.00038356,60]
[398232118,1765441844627,-500.0,0.00038356,60]
[398232119,1765441844636,-500.0,0.00038356,60]
[398232120,1765441844645,-500.0,0.00038356,60]
[398232121,1765441844655,-1585.5,0.00038356,60]
[398232122,1765441844664,-1585.5,0.00038356,60]
[398232123,1765441844673,-500.0,0.00038356,60]
[398232124,1765441844682,-1585.5,0.00038356,60]
[398232125,1765441844692,-500.0,0.00038356,60]
[398232126,1765441844701,-500.0,0.00038356,60]
[398232127,1765441844710,-1585.5,0.00038356,60]
[398232128,1765441844719,-500.0,0.00038356,60]
[398232129,1765441844728,-500.0,0.00038356,60]
[398232130,1765441844737,-1585.5,0.00038356,60]
[398232131,1765441844746,-500.0,0.00038356,60]
[398232132,1765441844755,-500.0,0.00038356,60]
[398232133,1765441844765,-1585.5,0.00038356,60]
[398232134,1765441844775,-500.0,0.00038356,60]
[398232135,1765441844784,-500.0,0.00038356,60]
[398232136,1765441844794,-500.0,0.00038356,60]
[398232137,1765441844803,-1585.5,0.00038356,60]
[398232138,1765441844812,-536.02620099,0.00038356,60]
[398232139,1765441844821,-500.0,0.00038356,60]
[398232140,1765441844831,-1585.5,0.00038356,60]
[398232141,1765441844840,-516.83733945,0.00038356,60]
[398232142,1765441844850,-1585.5,0.00038356,60]
[398232143,1765441844859,-1585.5,0.00038356,60]
[398232144,1765441844868,-1585.5,0.00038356,60]
[398232145,1765441844877,-500.0,0.00038356,60]
[398232146,1765441844886,-1585.5,0.00038356,60]
[398232147,1765441844895,-500.0,0.00038356,60]
[398232148,1765441844905,-1585.5,0.00038356,60]
[398232149,1765441844914,-500.0,0.00038356,60]
[398232150,1765441844923,-500.0,0.00038356,60]
[398232151,1765441844932,-500.0,0.00038356,60]
[398232152,1765441844942,-500.0,0.00038356,60]
[398232153,1765441844951,-500.0,0.00038356,60]
[398232154,1765441844960,-500.0,0.00038356,60]
[398232155,1765441844971,-500.0,0.00038356,60]
[398232156,1765441844982,-500.0,0.00038356,60]
[398232157,1765441844992,-500.0,0.00038356,60]
[398232158,1765441845001,-500.0,0.00038356,60]
[398232159,1765441845010,-500.0,0.00038356,60]
[398232160,1765441845020,-500.0,0.00038356,60]
[398232161,1765441845030,-500.0,0.00038356,60]
[398232162,1765441845040,-500.0,0.00038356,60]
[398232163,1765441845050,-500.0,0.00038356,60]
[398232164,1765441845060,-500.0,0.00038356,60]
[398232165,1765441845070,-501.67973271,0.00038356,60]
[398232166,1765441845079,-500.0,0.00038356,60]
[398232167,1765441845088,-500.0,0.00038356,60]
[398232168,1765441845099,-501.40442959,0.00038356,2]
[398232169,1765441845108,-500.0,0.00038356,60]
[398232170,1765441845118,-500.0,0.00038356,60]
[398232171,1765441845127,-500.0,0.00038356,60]
[398232172,1765441845138,-500.0,0.00038356,60]
[398232173,1765441845147,-500.0,0.00038356,60]
[398232174,1765441845156,-500.0,0.00038356,60]
[398232175,1765441845166,-507.03099784,0.00038356,60]
[398232176,1765441845175,-500.0,0.00038356,60]
[398232177,1765441845328,-500.0,0.00038356,60]
[398232178,1765441845338,-500.0,0.00038356,60]
[398232179,1765441845347,-428.79008161,0.00038356,60]
[398232180,1765441845356,-502.6225852,0.00038356,60]
[398232181,1765441845366,-500.0,0.00038356,60]
[398232182,1765441845375,-501.74217647,0.00038356,60]
[398232183,1765441845384,-500.0,0.00038356,60]
[398232184,1765441845393,-500.0,0.00038356,60]
[398232185,1765441845403,-500.0,0.00038356,60]